fUST/lending_fUST_20241108
["ID","MTS","AMOUNT","RATE_DAILY","PERIOD"]
[341623656,1731042664030,-500.0,0.00023353,2]
[341623657,1731042664042,-500.0,0.00023353,2]
[341623658,1731042664052,-295.14428862,0.00023353,2]
[341623659,1731042664061,-500.0,0.00023353,2]
[341623660,1731042664071,-500.0,0.00023353,2]
[341623661,1731042664083,-782.49,0.00023353,2]
[341623662,1731042664093,-500.0,0.00023353,2]
[341623663,1731042664102,-3703.75,0.00023353,2]
[341623664,1731042664112,-500.0,0.00023353,2]
[341623665,1731042664121,-500.0,0.00023353,2]
[341623666,1731042664131,-507.44171126,0.00023353,2]
[341623667,1731042664140,-500.0,0.00023353,2]
[341623668,1731042664150,-500.0,0.00023353,2]
[341623669,1731042664159,-2434.14,0.00023353,2]
[341623670,1731042664169,-869.27,0.00023353,2]
[341623671,1731042664179,-500.0,0.00023353,2]
[341623672,1731042664190,-500.0,0.00023353,2]
[341623673,1731042664200,-1006.19,0.00023353,2]
[341623674,1731042664210,-500.0,0.00023353,2]
[341623675,1731042664219,-500.0,0.00023353,2]
[341623676,1731042664229,-920.12,0.00023353,2]
[341623677,1731042664239,-500.0,0.00023353,2]
[341623678,1731042664248,-1314.88,0.00023353,2]
[341623679,1731042664257,-500.0,0.00023353,2]
[341623680,1731042664267,-987.69,0.00023353,2]
[341623681,1731042664277,-500.0,0.00023353,2]
[341623682,1731042664286,-500.0,0.00023353,2]
[341623683,1731042664296,-500.0,0.00023353,2]
[341623684,1731042664305,-500.0,0.00023353,2]
[341623685,1731042664315,-535.85392158,0.00023353,2]
[341623686,1731042664324,-153.74694053,0.00023373,2]
[341623687,1731042664334,-500.0,0.00023373,2]
[341623688,1731042664345,-500.56168011,0.00023373,2]
[341623689,1731042664355,-500.0,0.00023373,2]
[341623690,1731042664365,-188.44242339,0.00023373,2]
[341623691,1731042664374,-501.41844469,0.00023373,2]
[341623692,1731042664383,-500.0,0.00023373,2]
[341623693,1731042664394,-501.85254998,0.00023373,2]
[341623694,1731042664404,-500.0,0.00023373,2]
[341623695,1731042664413,-500.81353449,0.00023373,2]
[341623696,1731042664425,-503.43157059,0.00023373,2]
[341623697,1731042664434,-329.60110479,0.00023623,2]
[341623698,1731042664445,-500.0,0.00023623,2]
[341623699,1731042664456,-1157.22,0.00023623,2]
[341623700,1731042664465,-500.0,0.00023623,2]
[341623701,1731042664475,-500.0,0.00023623,2]
[341623702,1731042664484,-500.0,0.00023623,2]
[341623703,1731042664493,-500.0,0.00023623,2]
[341623704,1731042664503,-6955.11,0.00023623,2]
[341623705,1731042664512,-500.0,0.00023623,2]
[341623706,1731042664521,-500.0,0.00023623,2]
[341623707,1731042664531,-470.67206991,0.00023623,2]
[341623708,1731042664541,-500.0,0.00023623,2]
[341623709,1731042664551,-500.0,0.00023623,2]
[341623710,1731042664560,-500.0,0.00023625,2]
[341623711,1731042664570,-500.0,0.00023625,2]
[341623712,1731042664580,-500.0,0.00023625,2]
[341623713,1731042664589,-500.0,0.00023625,2]
[341623714,1731042664599,-500.0,0.00023625,2]
[341623715,1731042664609,-500.0,0.00023625,2]
[341623716,1731042664618,-521.18434175,0.00023625,2]
[341623717,1731042664627,-500.0,0.00023625,2]
[341623718,1731042664637,-500.0,0.00023625,2]
[341623719,1731042664646,-500.0,0.00023625,2]
[341623720,1731042664655,-609.36,0.00023625,2]
[341623721,1731042664664,-543.41933385,0.00023625,2]
[341623722,1731042664673,-450.0,0.00023625,2]
[341623723,1731042664683,-500.0,0.00023625,2]
[341623724,1731042664692,-196.99589444,0.00023625,2]
[341623725,1731042664702,-500.0,0.00023625,2]
[341623726,1731042664711,-500.0,0.00023625,2]
[341623727,1731042664720,-500.0,0.00023625,2]
[341623728,1731042664730,-500.0,0.00023625,2]
[341623729,1731042664739,-261.00444764,0.00023625,2]
[341623730,1731042664748,-640.60199306,0.00023625,2]
[341623731,1731042664757,-500.0,0.00023625,2]
[341623732,1731042664767,-380.86293862,0.00023625,2]
[341623733,1731042664776,-500.0,0.00023625,2]
[341623734,1731042664785,-500.0,0.00023625,2]
[341623735,1731042664794,-500.0,0.00023625,2]
[341623736,1731042664804,-500.0,0.00023625,2]
[341623737,1731042664813,-614.3471133,0.00023625,2]
[341623738,1731042664822,-577.54,0.00023625,2]
[341623739,1731042664831,-567.75350349,0.00023625,2]
[341623740,1731042664841,-516.53510019,0.00023625,2]
[341623741,1731042664849,-500.0,0.00023625,2]
[341623742,1731042664859,-500.0,0.00023625,2]
[341623743,1731042664869,-2336.0,0.00023625,2]
[341623744,1731042664878,-506.87999379,0.00023625,2]
[341623745,1731042664887,-517.95345829,0.00023625,2]
[341623746,1731042664896,-500.0,0.00023625,2]
[341623747,1731042664906,-501.44,0.00023625,2]
[341623748,1731042664915,-531.49522774,0.00023625,2]
[341623749,1731042664924,-500.0,0.00023625,2]
[341623750,1731042664934,-500.0,0.00023625,2]
[341623751,1731042664943,-500.0,0.00023625,2]
[341623752,1731042664952,-500.0,0.00023625,2]
[341623753,1731042664961,-500.0,0.00023625,2]
[341623754,1731042664971,-500.0,0.00023625,2]
[341623755,1731042664980,-500.0,0.00023625,2]
[341623756,1731042664989,-500.0,0.00023625,2]
[341623757,1731042664998,-500.0,0.00023625,2]
[341623758,1731042665007,-500.0,0.00023625,2]
[341623759,1731042665016,-523.68480769,0.00023625,2]
[341623760,1731042665025,-500.0,0.00023625,2]
[341623761,1731042665034,-500.0,0.00023625,2]
[341623762,1731042665043,-500.0,0.00023625,2]
[341623763,1731042665052,-521.48493846,0.00023625,2]
[341623764,1731042665062,-500.0,0.00023625,2]
[341623765,1731042665071,-1716.27,0.00023625,2]
[341623766,1731042665080,-500.0,0.00023625,2]
[341623767,1731042665090,-500.0,0.00023625,2]
[341623768,1731042665099,-511.87419687,0.00023625,2]
[341623769,1731042665108,-500.0,0.00023625,2]
[341623770,1731042665118,-500.0,0.00023625,2]
[341623771,1731042665127,-500.0,0.00023625,2]
[341623772,1731042665200,-500.0,0.00023625,2]
[341623773,1731042665210,-500.0,0.00023625,2]
[341623774,1731042665219,-500.0,0.00023625,2]
[341623775,1731042665228,-500.0,0.00023625,2]
[341623776,1731042665237,-756.1,0.00023625,2]
[341623777,1731042665246,-500.0,0.00023625,2]
[341623778,1731042665256,-500.0,0.00023625,2]
[341623779,1731042665265,-15386.03,0.00023625,2]
[341623780,1731042665274,-500.0,0.00023625,2]
[341623781,1731042665284,-15896.94,0.00023625,2]
[341623782,1731042665293,-500.0,0.00023625,2]
[341623783,1731042665302,-500.0,0.00023625,2]
[341623784,1731042665311,-500.0,0.00023625,2]
[341623785,1731042665320,-500.0,0.00023625,2]
[341623786,1731042665329,-500.0,0.00023625,2]
[341623787,1731042665339,-556.83,0.00023625,2]
[341623788,1731042665350,-500.0,0.00023625,2]
[341623789,1731042665359,-291.01607005,0.00023625,2]
[341623790,1731042665368,-500.0,0.00023625,2]
[341623791,1731042665377,-500.0,0.00023625,2]
[341623792,1731042665387,-7867.05,0.00023625,2]
[341623793,1731042665396,-500.0,0.00023625,2]
[341623794,1731042665405,-1315.45,0.00023625,2]
[341623795,1731042665415,-500.0,0.00023625,2]
[341623796,1731042665425,-500.0,0.00023625,2]
[341623797,1731042665434,-500.0,0.00023625,2]
[341623798,1731042665444,-500.0,0.00023625,2]
[341623799,1731042665454,-500.0,0.00023625,2]
[341623800,1731042665463,-500.0,0.00023625,2]
[341623801,1731042665472,-500.0,0.00023625,2]
[341623802,1731042665482,-500.0,0.00023625,2]
[341623803,1731042665491,-848.73,0.00023625,2]
[341623804,1731042665499,-500.0,0.00023625,2]
[341623805,1731042665508,-500.0,0.00023625,2]
[341623806,1731042665518,-500.0,0.00023625,2]
[341623807,1731042665527,-291.49998199,0.00023625,2]
[341623808,1731042665536,-618.63143316,0.00023625,2]
[341623809,1731042665545,-500.0,0.00023625,2]
[341623810,1731042665555,-500.0,0.00023625,2]
[341623811,1731042665564,-500.0,0.00023625,2]
[341623812,1731042665574,-1199.32,0.00023625,2]
[341623813,1731042665583,-500.0,0.00023625,2]
[341623814,1731042665592,-500.0,0.00023625,2]
[341623815,1731042665601,-250.0,0.00023625,2]
[341623816,1731042665610,-500.0,0.00023625,2]
[341623817,1731042665619,-500.0,0.00023625,2]
[341623818,1731042665629,-523.06963713,0.00023625,2]
[341623819,1731042665638,-500.0,0.00023625,2]
[341623820,1731042665647,-537.6,0.00023625,2]
[341623821,1731042665656,-612.93,0.00023625,2]
[341623822,1731042665666,-500.0,0.00023625,2]
[341623823,1731042665675,-644.75393481,0.00023625,2]
[341623824,1731042665684,-535.4,0.00023625,2]
[341623825,1731042665694,-598.13569056,0.00023625,2]
[341623826,1731042665704,-879.97,0.00023625,2]
[341623827,1731042665713,-500.0,0.00023625,2]
[341623828,1731042665723,-1065.14,0.00023625,2]
[341623829,1731042665733,-500.0,0.00023625,2]
[341623830,1731042665744,-500.0,0.00023625,2]
[341623831,1731042665753,-500.0,0.00023625,2]
[341623832,1731042665763,-500.0,0.00023625,2]
[341623833,1731042665772,-581.53,0.00023625,2]
[341623834,1731042665782,-500.0,0.00023625,2]
[341623835,1731042665791,-500.0,0.00023625,2]
[341623836,1731042665799,-500.0,0.00023625,2]
[341623837,1731042665808,-500.0,0.00023625,2]
[341623838,1731042665817,-500.0,0.00023625,2]
[341623839,1731042665827,-580.87,0.00023625,2]
[341623840,1731042665836,-500.0,0.00023625,2]
[341623841,1731042665845,-500.0,0.00023625,2]
[341623842,1731042665854,-500.0,0.00023625,2]
[341623843,1731042665862,-629.96628385,0.00023625,2]
[341623844,1731042665872,-500.0,0.00023625,2]
[341623845,1731042665882,-500.0,0.00023625,2]
[341623846,1731042665892,-500.0,0.00023625,2]
[341623847,1731042665901,-500.0,0.00023625,2]
[341623848,1731042665911,-500.0,0.00023625,2]
[341623849,1731042665920,-782.0,0.00023626,2]
[341623850,1731042665929,-500.0,0.00023626,2]
[341623851,1731042665939,-500.0,0.00023626,2]
[341623852,1731042665949,-500.0,0.00023626,2]
[341623853,1731042665958,-500.0,0.00023626,2]
[341623854,1731042665967,-200.0,0.00023626,2]
[341623855,1731042665976,-500.0,0.00023626,2]
[341623856,1731042665985,-500.0,0.00023626,2]
[341623857,1731042665994,-500.0,0.00023626,2]
[341623858,1731042666003,-500.0,0.00023626,2]
[341623859,1731042666012,-500.0,0.00023626,2]
[341623860,1731042666021,-633.53249099,0.00023626,2]
[341623861,1731042666030,-500.0,0.00023626,2]
[341623862,1731042666039,-500.0,0.00023626,2]
[341623863,1731042666048,-500.0,0.00023626,2]
[341623864,1731042666057,-500.0,0.00023626,2]
[341623865,1731042666067,-500.0,0.00023626,2]
[341623866,1731042666076,-500.0,0.00023626,2]
[341623867,1731042666085,-500.0,0.00023626,2]
[341623868,1731042666094,-500.0,0.00023626,2]
[341623869,1731042666104,-500.0,0.00023626,2]
[341623870,1731042666113,-500.0,0.00023626,2]
[341623871,1731042666122,-500.0,0.00023626,2]
[341623872,1731042666131,-592.04,0.00023626,2]
[341623873,1731042666140,-500.0,0.00023626,2]
[341623874,1731042666150,-624.37,0.00023626,2]
[341623875,1731042666159,-500.0,0.00023626,2]
[341623876,1731042666167,-500.0,0.00023626,2]
[341623877,1731042666177,-500.0,0.00023626,2]
[341623878,1731042666186,-500.0,0.00023626,2]
[341623879,1731042666197,-500.0,0.00023626,2]
[341623880,1731042666206,-500.0,0.00023626,2]
[341623881,1731042666215,-520.38,0.00023626,2]
[341623882,1731042666224,-500.0,0.00023626,2]
[341623883,1731042666293,-654.92,0.00023626,2]
[341623884,1731042666302,-574.49352064,0.00023626,2]
[341623885,1731042666311,-500.0,0.00023626,2]
[341623886,1731042666321,-500.0,0.00023626,2]
[341623887,1731042666330,-500.0,0.00023626,2]
[341623888,1731042666339,-509.22533756,0.00023626,2]
[341623889,1731042666351,-500.0,0.00023626,2]
[341623890,1731042666360,-500.0,0.00023626,2]
[341623891,1731042666369,-500.0,0.00023626,2]
[341623892,1731042666378,-500.0,0.00023626,2]
[341623893,1731042666387,-500.0,0.00023626,2]
[341623894,1731042666397,-500.0,0.00023626,2]
[341623895,1731042666406,-500.0,0.00023626,2]
[341623896,1731042666416,-500.0,0.00023626,2]
[341623897,1731042666426,-500.0,0.00023626,2]
[341623898,1731042666435,-500.0,0.00023626,2]
[341623899,1731042666446,-500.0,0.00023626,2]
[341623900,1731042666457,-500.0,0.00023626,2]
[341623901,1731042666466,-500.0,0.00023626,2]
[341623902,1731042666476,-500.0,0.00023626,2]
[341623903,1731042666485,-500.0,0.00023626,2]
[341623904,1731042666494,-500.0,0.00023626,2]
[341623905,1731042666503,-500.0,0.00023626,2]
[341623906,1731042666513,-500.0,0.00023626,2]
[341623907,1731042666523,-651.68,0.00023626,2]
[341623908,1731042666532,-500.0,0.00023626,2]
[341623909,1731042666541,-500.0,0.00023626,2]
[341623910,1731042666550,-610.93,0.00023626,2]
[341623911,1731042666559,-500.0,0.00023627,2]
[341623912,1731042666568,-500.0,0.00023627,2]
[341623913,1731042666578,-500.0,0.00023627,2]
[341623914,1731042666588,-500.0,0.00023627,2]
[341623915,1731042666597,-500.0,0.00023627,2]
[341623916,1731042666606,-363.53430032,0.00023627,2]
[341623917,1731042666615,-523.78654742,0.00023627,2]
[341623918,1731042666623,-500.0,0.00023627,2]
[341623919,1731042666633,-500.0,0.00023627,2]
[341623920,1731042666643,-500.0,0.00023627,2]
[341623921,1731042666653,-500.0,0.00023627,2]
[341623922,1731042666663,-500.0,0.00023627,2]
[341623923,1731042666672,-583.47051293,0.00023627,2]
[341623924,1731042666681,-500.0,0.00023627,2]
[341623925,1731042666691,-500.0,0.00023627,2]
[341623926,1731042666701,-500.0,0.00023627,2]
[341623927,1731042666710,-500.0,0.00023627,2]
[341623928,1731042666720,-500.0,0.00023627,2]
[341623929,1731042666729,-500.0,0.00023627,2]
[341623930,1731042666739,-500.0,0.00023627,2]
[341623931,1731042666748,-500.0,0.00023627,2]
[341623932,1731042666757,-500.0,0.00023627,2]
[341623933,1731042666767,-500.0,0.00023627,2]
[341623934,1731042666776,-471.69223801,0.00023627,2]
[341623935,1731042666785,-500.0,0.00023627,2]
[341623936,1731042666795,-500.0,0.00023627,2]
[341623937,1731042666804,-536.83,0.00023627,2]
[341623938,1731042666813,-151.0,0.00023627,7]
[341623939,1731042666822,-500.0,0.00023627,2]
[341623940,1731042666831,-509.38949492,0.00023627,2]
[341623941,1731042666840,-516.45133477,0.00023627,2]
[341623942,1731042666849,-500.0,0.00023627,2]
[341623943,1731042666858,-500.0,0.00023627,2]
[341623944,1731042666866,-500.0,0.00023627,2]
[341623945,1731042666875,-500.0,0.00023627,2]
[341623946,1731042666884,-522.61639441,0.00023627,2]
[341623947,1731042666893,-308.86037553,0.00023627,2]
[341623948,1731042666903,-500.0,0.00023627,2]
[341623949,1731042666913,-533.84162683,0.00023627,2]
[341623950,1731042666922,-151.0,0.00023627,7]
[341623951,1731042666931,-500.0,0.00023627,2]
[341623952,1731042666940,-416.80006576,0.00023627,2]
[341623953,1731042666952,-500.0,0.00023627,2]
[341623954,1731042666961,-501.01856195,0.00023627,2]
[341623955,1731042666970,-500.0,0.00023627,2]
[341623956,1731042666980,-467.02289744,0.00023627,2]
[341623957,1731042666989,-500.0,0.00023627,2]
[341623958,1731042666998,-500.0,0.00023627,2]
[341623959,1731042667007,-500.0,0.00023627,2]
[341623960,1731042667016,-500.0,0.00023627,2]
[341623961,1731042667025,-526.73437891,0.00023627,2]
[341623962,1731042667034,-500.0,0.00023627,2]
[341623963,1731042667043,-151.01763077,0.00023627,2]
[341623964,1731042667052,-500.0,0.00023627,2]
[341623965,1731042667061,-557.00332747,0.00023627,2]
[341623966,1731042667070,-500.0,0.00023627,2]
[341623967,1731042667079,-500.0,0.00023627,2]
[341623968,1731042667088,-500.0,0.00023627,2]
[341623969,1731042667097,-500.0,0.00023627,2]
[341623970,1731042667106,-500.0,0.00023627,2]
[341623971,1731042667116,-500.0,0.00023627,2]
[341623972,1731042667125,-376.15411555,0.00023627,2]
[341623973,1731042667134,-500.0,0.00023627,2]
[341623974,1731042667143,-500.0,0.00023627,2]
[341623975,1731042667152,-495.52595683,0.00023627,2]
[341623976,1731042667161,-500.0,0.00023627,2]
[341623977,1731042667171,-500.0,0.00023627,2]
[341623978,1731042667180,-500.0,0.00023627,2]
[341623979,1731042667189,-519.26553206,0.00023627,2]
[341623980,1731042667200,-500.0,0.00023627,2]
[341623981,1731042667209,-151.0,0.00023627,7]
[341623982,1731042667219,-151.0,0.00023627,7]
[341623983,1731042667229,-319.04346002,0.00023627,2]
[341623984,1731042667238,-500.0,0.00023627,2]
[341623985,1731042667306,-500.0,0.00023627,2]
[341623986,1731042667315,-158.497006,0.00023627,7]
[341623987,1731042667324,-158.497006,0.00023627,7]
[341623988,1731042667333,-500.0,0.00023627,2]
[341623989,1731042667343,-158.497006,0.00023627,7]
[341623990,1731042667355,-158.497013,0.00023627,7]
[341623991,1731042667364,-500.0,0.00023627,2]
[341623992,1731042667374,-500.0,0.00023627,2]
[341623993,1731042667384,-500.0,0.00023627,2]
[341623994,1731042667395,-500.0,0.00023627,2]
[341623995,1731042667405,-516.358396,0.00023627,7]
[341623996,1731042667415,-516.358396,0.00023627,7]
[341623997,1731042667429,-504.5108791,0.00023627,2]
[341623998,1731042667440,-500.0,0.00023627,2]
[341623999,1731042667452,-516.358396,0.00023627,7]
[341624000,1731042667461,-516.358387,0.00023627,7]
[341624001,1731042667471,-500.0,0.00023627,2]
[341624002,1731042667481,-500.0,0.00023627,2]
[341624003,1731042667491,-198.3842873,0.00023627,2]
[341624004,1731042667500,-500.0,0.00023627,2]
[341624005,1731042667509,-702.34,0.00023627,2]
[341624006,1731042667518,-517.22877872,0.00023627,2]
[341624007,1731042667527,-151.0,0.00023627,7]
[341624008,1731042667537,-252.488829,0.00023627,7]
[341624009,1731042667546,-500.0,0.00023627,2]
[341624010,1731042667556,-268.78280649,0.00023627,2]
[341624011,1731042667566,-544.43,0.00023627,2]
[341624012,1731042667575,-500.0,0.00023627,2]
[341624013,1731042667585,-516.24736591,0.00023627,2]
[341624014,1731042667595,-500.0,0.00023627,2]
[341624015,1731042667605,-500.0,0.00023627,2]
[341624016,1731042667614,-500.0,0.00023627,2]
[341624017,1731042667623,-500.0,0.00023627,2]
[341624018,1731042667633,-500.0,0.00023627,2]
[341624019,1731042667642,-629.54067906,0.00023627,2]
[341624020,1731042667651,-275.29282797,0.00023627,2]
[341624021,1731042667660,-158.63596761,0.00023627,2]
[341624022,1731042667670,-500.0,0.00023627,2]
[341624023,1731042667679,-500.0,0.00023627,2]
[341624024,1731042667688,-523.53300711,0.00023627,2]
[341624025,1731042667699,-500.0,0.00023627,2]
[341624026,1731042667707,-500.0,0.00023627,2]
[341624027,1731042667716,-500.0,0.00023627,2]
[341624028,1731042667726,-500.0,0.00023627,2]
[341624029,1731042667736,-500.0,0.00023627,2]
[341624030,1731042667745,-500.0,0.00023627,2]
[341624031,1731042667755,-500.0,0.00023627,2]
[341624032,1731042667774,-500.0,0.00023627,2]
[341624033,1731042667791,-508.25940261,0.00023627,2]
[341624034,1731042667809,-500.0,0.00023627,2]
[341624035,1731042667829,-500.0,0.00023627,2]
[341624036,1731042667846,-500.0,0.00023627,2]
[341624037,1731042667864,-500.0,0.00023627,2]
[341624038,1731042667879,-500.0,0.00023627,2]
[341624039,1731042667896,-504.26750648,0.00023627,2]
[341624040,1731042667914,-614.64409054,0.00023627,2]
[341624041,1731042667932,-218.59767066,0.00023627,2]
[341624042,1731042667945,-500.0,0.00023627,2]
[341624043,1731042667970,-500.0,0.00023627,2]
[341624044,1731042667983,-500.0,0.00023627,2]
[341624045,1731042667998,-527.68,0.00023627,2]
[341624046,1731042668012,-500.0,0.00023627,2]
[341624047,1731042668025,-500.0,0.00023627,2]
[341624048,1731042668040,-500.0,0.00023627,2]
[341624049,1731042668054,-500.0,0.00023627,2]
[341624050,1731042668068,-500.0,0.00023627,2]
[341624051,1731042668082,-500.0,0.00023627,2]
[341624052,1731042668096,-500.0,0.00023627,2]
[341624053,1731042668110,-782.49,0.00023627,2]
[341624054,1731042668125,-500.0,0.00023627,2]
[341624055,1731042668139,-3703.75,0.00023627,2]
[341624056,1731042668153,-500.0,0.00023627,2]
[341624057,1731042668167,-500.0,0.00023627,2]
[341624058,1731042668183,-500.0,0.00023627,2]
[341624059,1731042668197,-500.0,0.00023627,2]
[341624060,1731042668212,-2434.14,0.00023627,2]
[341624061,1731042668226,-869.27,0.00023627,2]
[341624062,1731042668242,-500.0,0.00023627,2]
[341624063,1731042668257,-500.0,0.00023627,2]
[341624064,1731042668271,-1006.19,0.00023627,2]
[341624065,1731042668286,-316.58533016,0.00023627,2]
[341624066,1731042668300,-500.0,0.00023627,2]
[341624067,1731042668314,-920.12,0.00023627,2]
[341624068,1731042668328,-500.0,0.00023627,2]
[341624069,1731042668342,-1314.88,0.00023627,2]
[341624070,1731042668359,-500.0,0.00023627,2]
[341624071,1731042668373,-987.69,0.00023627,2]
[341624072,1731042668389,-500.0,0.00023627,2]
[341624073,1731042668404,-500.0,0.00023627,2]
[341624074,1731042668419,-500.0,0.00023627,2]
[341624075,1731042668433,-500.0,0.00023627,2]
[341624076,1731042668447,-219.45090576,0.00023643,2]
[341624077,1731042668462,-151.0,0.00023644,7]
[341624078,1731042668558,-500.0,0.00023645,2]
[341624079,1731042668570,-151.97106361,0.00023645,2]
[341624080,1731042668582,-500.0,0.00023645,2]
[341624081,1731042668591,-500.0,0.00023645,2]
[341624082,1731042668601,-500.0,0.00023645,2]
[341624083,1731042668611,-500.0,0.00023645,2]
[341624084,1731042668620,-500.0,0.00023645,2]
[341624085,1731042668629,-500.0,0.00023645,2]
[341624086,1731042668638,-504.04421084,0.00023645,2]
[341624087,1731042668647,-541.51421592,0.00023645,2]
[341624088,1731042668656,-500.0,0.00023645,2]
[341624089,1731042668666,-500.0,0.00023645,2]
[341624090,1731042668676,-500.0,0.00023645,2]
[341624091,1731042668686,-500.98686105,0.00023673,2]
[341624092,1731042668696,-162.48991277,0.00023694,2]
[341624093,1731042668704,-626.936434,0.00023694,2]
[341624094,1731042668714,-3318.69827351,0.00023769,2]
[341624095,1731042668723,-420.0,0.00023881,2]
[341624096,1731042668733,-500.0,0.00023897,2]
[341624097,1731042668743,-1157.22,0.00023897,2]
[341624098,1731042668752,-500.0,0.00023897,2]
[341624099,1731042668762,-500.0,0.00023897,2]
[341624100,1731042668773,-500.0,0.00023897,2]
[341624101,1731042668782,-500.0,0.00023897,2]
[341624102,1731042668792,-6955.11,0.00023897,2]
[341624103,1731042668802,-500.0,0.00023897,2]
[341624104,1731042668812,-500.0,0.00023897,2]
[341624105,1731042668825,-500.0,0.00023897,2]
[341624106,1731042668834,-500.0,0.00023897,2]
[341624107,1731042668843,-500.0,0.00023899,2]
[341624108,1731042668854,-500.0,0.00023899,2]
[341624109,1731042668864,-500.0,0.00023899,2]
[341624110,1731042668874,-511.21751958,0.00023899,2]
[341624111,1731042668884,-500.0,0.00023899,2]
[341624112,1731042668894,-500.0,0.00023899,2]
[341624113,1731042668903,-500.0,0.00023899,2]
[341624114,1731042668913,-500.0,0.00023899,2]
[341624115,1731042668922,-500.0,0.00023899,2]
[341624116,1731042668931,-609.36,0.00023899,2]
[341624117,1731042668940,-500.0,0.00023899,2]
[341624118,1731042668951,-500.0,0.00023899,2]
[341624119,1731042668959,-500.0,0.00023899,2]
[341624120,1731042668968,-500.0,0.00023899,2]
[341624121,1731042668978,-500.0,0.00023899,2]
[341624122,1731042668987,-500.0,0.00023899,2]
[341624123,1731042668996,-535.99488805,0.00023899,2]
[341624124,1731042669005,-500.0,0.00023899,2]
[341624125,1731042669014,-500.0,0.00023899,2]
[341624126,1731042669023,-577.54,0.00023899,2]
[341624127,1731042669032,-288.21148651,0.00023899,2]
[341624128,1731042669042,-500.0,0.00023899,2]
[341624129,1731042669050,-2336.0,0.00023899,2]
[341624130,1731042669059,-500.0,0.00023899,2]
[341624131,1731042669068,-501.44,0.00023899,2]
[341624132,1731042669077,-309.33286462,0.00023899,2]
[341624133,1731042669086,-500.0,0.00023899,2]
[341624134,1731042669095,-500.0,0.00023899,2]
[341624135,1731042669104,-486.31353601,0.00023899,2]
[341624136,1731042669113,-500.0,0.00023899,2]
[341624137,1731042669122,-500.0,0.00023899,2]
[341624138,1731042669131,-500.0,0.00023899,2]
[341624139,1731042669140,-500.0,0.00023899,2]
[341624140,1731042669150,-500.0,0.00023899,2]
[341624141,1731042669159,-500.0,0.00023899,2]
[341624142,1731042669168,-500.0,0.00023899,2]
[341624143,1731042669178,-500.0,0.00023899,2]
[341624144,1731042669187,-500.0,0.00023899,2]
[341624145,1731042669197,-500.0,0.00023899,2]
[341624146,1731042669210,-1716.27,0.00023899,2]
[341624147,1731042669219,-500.0,0.00023899,2]
[341624148,1731042669229,-500.0,0.00023899,2]
[341624149,1731042669238,-500.0,0.00023899,2]
[341624150,1731042669247,-500.0,0.00023899,2]
[341624151,1731042669256,-500.0,0.00023899,2]
[341624152,1731042669266,-500.0,0.00023899,2]
[341624153,1731042669275,-500.0,0.00023899,2]
[341624154,1731042669285,-500.0,0.00023899,2]
[341624155,1731042669296,-500.0,0.00023899,2]